[Event "Early-Titled-Tuesday-Blitz-November-28-2023"]
[Site "Chess.com"]
[Date "2023.11.28"]
[Round "2"]
[White "alvarorodriguezavila"]
[Black "Truequitos"]
[Result "0-1"]
[WhiteElo "2219"]
[BlackElo "2493"]
[TimeControl "180+1"]
[EndTime "8:20:03 PST"]
[Termination "Truequitos won on time"]

1. e4 {[%clk 0:03:00.9]} 1... e6 {[%clk 0:02:54.1]} 2. d4 {[%clk 0:03:00.6]}
2... c5 {[%clk 0:02:52.8]} 3. d5 {[%clk 0:03:00.3]} 3... exd5 {[%clk 0:02:52.8]}
4. exd5 {[%clk 0:03:01.2]} 4... d6 {[%clk 0:02:52.1]} 5. c4 {[%clk 0:03:01.8]}
5... Nf6 {[%clk 0:02:52.7]} 6. Nc3 {[%clk 0:03:02]} 6... Be7 {[%clk 0:02:53.2]}
7. Bd3 {[%clk 0:03:01.1]} 7... O-O {[%clk 0:02:54.1]} 8. Nge2 {[%clk 0:03:01.4]}
8... Re8 {[%clk 0:02:55]} 9. O-O {[%clk 0:03:01.7]} 9... Na6 {[%clk 0:02:55.6]}
10. a3 {[%clk 0:03:01.1]} 10... Nc7 {[%clk 0:02:55.9]} 11. Ng3 {[%clk
0:02:54.5]} 11... a6 {[%clk 0:02:51.6]} 12. a4 {[%clk 0:02:53.6]} 12... b6
{[%clk 0:02:51.8]} 13. Re1 {[%clk 0:02:51]} 13... Bf8 {[%clk 0:02:50.6]} 14. Bg5
{[%clk 0:02:37.6]} 14... h6 {[%clk 0:02:48.9]} 15. Rxe8 {[%clk 0:02:32.8]} 15...
Ncxe8 {[%clk 0:02:46.8]} 16. Bd2 {[%clk 0:02:31.1]} 16... g6 {[%clk 0:02:32.2]}
17. h3 {[%clk 0:02:25.9]} 17... Bg7 {[%clk 0:02:32]} 18. Qf3 {[%clk 0:02:26.6]}
18... Nd7 {[%clk 0:02:31.7]} 19. Bf1 {[%clk 0:02:07.7]} 19... Qh4 {[%clk
0:02:26.4]} 20. Re1 {[%clk 0:02:02.6]} 20... Ne5 {[%clk 0:02:26.2]} 21. Qe4
{[%clk 0:01:55]} 21... Qxe4 {[%clk 0:01:54.6]} 22. Ngxe4 {[%clk 0:01:52.7]}
22... f5 {[%clk 0:01:42.1]} 23. Ng3 {[%clk 0:01:30.9]} 23... Kf7 {[%clk
0:01:42.1]} 24. f4 {[%clk 0:01:10.1]} 24... Nd7 {[%clk 0:01:41.8]} 25. Bd3
{[%clk 0:01:09.2]} 25... Ndf6 {[%clk 0:01:36.7]} 26. Kf1 {[%clk 0:01:06.7]}
26... Ra7 {[%clk 0:01:36.2]} 27. a5 {[%clk 0:00:52.7]} 27... bxa5 {[%clk
0:01:25.9]} 28. Ra1 {[%clk 0:00:44.5]} 28... Rb7 {[%clk 0:01:25.7]} 29. Bc1
{[%clk 0:00:45]} 29... Rb4 {[%clk 0:00:55.5]} 30. Rxa5 {[%clk 0:00:42.3]} 30...
Nd7 {[%clk 0:00:55.6]} 31. Nge2 {[%clk 0:00:33.7]} 31... Nb6 {[%clk 0:00:54.4]}
32. Na2 {[%clk 0:00:24.5]} 32... Nxc4 {[%clk 0:00:36.4]} 33. Nxb4 {[%clk
0:00:15.9]} 33... Nxa5 {[%clk 0:00:36.8]} 34. Bxa6 {[%clk 0:00:07.1]} 34... Bxa6
{[%clk 0:00:35.5]} 35. Nxa6 {[%clk 0:00:07.7]} 35... Nb3 {[%clk 0:00:34.8]} 36.
Nb8 {[%clk 0:00:02.8]} 36... Nxc1 {[%clk 0:00:33.3]} 37. Nxc1 {[%clk 0:00:03.7]}
37... Bxb2 {[%clk 0:00:33.5]} 38. Nd3 {[%clk 0:00:04.4]} 38... Bd4 {[%clk
0:00:31.9]} 39. Nc6 {[%clk 0:00:04.6]} 39... Bf6 {[%clk 0:00:29.3]} 40. Na5
{[%clk 0:00:04.5]} 40... Nc7 {[%clk 0:00:28.7]} 41. Nc4 {[%clk 0:00:04.5]} 41...
Ke7 {[%clk 0:00:27.4]} 42. Nb6 {[%clk 0:00:05]} 42... Bd4 {[%clk 0:00:23.9]} 43.
Ne1 {[%clk 0:00:03.7]} 43... g5 {[%clk 0:00:21.8]} 44. fxg5 {[%clk 0:00:03]}
44... hxg5 {[%clk 0:00:22.7]} 45. Nc2 {[%clk 0:00:03.4]} 45... Be5 {[%clk
0:00:22.2]} 46. Ke2 {[%clk 0:00:03.9]} 46... Nb5 {[%clk 0:00:20.6]} 47. Kd3
{[%clk 0:00:03.3]} 47... Nc3 {[%clk 0:00:19.9]} 48. Nc4 {[%clk 0:00:03]} 48...
Ne4 {[%clk 0:00:19.8]} 49. Nxe5 {[%clk 0:00:02.8]} 49... dxe5 {[%clk 0:00:20.7]}
50. Kc4 {[%clk 0:00:03.3]} 50... Kd6 {[%clk 0:00:19.7]} 51. Ne3 {[%clk
0:00:03.9]} 51... Nd2+ {[%clk 0:00:20.1]} 52. Kd3 {[%clk 0:00:04.4]} 52... Nb3
{[%clk 0:00:15.6]} 53. Nxf5+ {[%clk 0:00:04.6]} 53... Kxd5 {[%clk 0:00:16.2]}
54. Ne3+ {[%clk 0:00:05.2]} 54... Ke6 {[%clk 0:00:16]} 55. Ke4 {[%clk
0:00:05.1]} 55... Nd2+ {[%clk 0:00:15]} 56. Kd3 {[%clk 0:00:05.6]} 56... Nb3
{[%clk 0:00:14.9]} 57. Kc4 {[%clk 0:00:05.9]} 57... Nd4 {[%clk 0:00:08.8]} 58.
Kxc5 {[%clk 0:00:05.8]} 58... Nf5 {[%clk 0:00:08.5]} 59. Nf1 {[%clk 0:00:01.9]}
59... Nh4 {[%clk 0:00:09]} 60. Kc4 {[%clk 0:00:02.4]} 60... Nxg2 {[%clk
0:00:09.3]} 61. Kd3 {[%clk 0:00:03]} 61... Nf4+ {[%clk 0:00:09.8]} 62. Ke4
{[%clk 0:00:02.7]} 62... Nxh3 {[%clk 0:00:10.7]} 63. Ne3 {[%clk 0:00:03.3]}
63... Nf2+ {[%clk 0:00:09.8]} 64. Kf3 {[%clk 0:00:03.2]} 64... Nd3 {[%clk
0:00:10.4]} 65. Ke4 {[%clk 0:00:03.5]} 65... Nc5+ {[%clk 0:00:10.3]} 66. Kf3
{[%clk 0:00:03.1]} 66... Kf6 {[%clk 0:00:10.5]} 67. Kg4 {[%clk 0:00:03.4]} 67...
Kg6 {[%clk 0:00:10]} 68. Nc4 {[%clk 0:00:02.9]} 68... e4 {[%clk 0:00:10.4]} 69.
Ne3 {[%clk 0:00:03]} 69... Nd7 {[%clk 0:00:10]} 70. Nc4 {[%clk 0:00:03]} 70...
Nf6+ {[%clk 0:00:09.7]} 71. Kg3 {[%clk 0:00:02.9]} 71... Kf5 {[%clk 0:00:10.4]}
72. Ne3+ {[%clk 0:00:03]} 72... Ke5 {[%clk 0:00:10.8]} 73. Kf2 {[%clk
0:00:03.6]} 73... Kf4 {[%clk 0:00:10.6]} 74. Ng2+ {[%clk 0:00:03.3]} 74... Ke5
{[%clk 0:00:10.7]} 75. Ke2 {[%clk 0:00:02.6]} 75... Nd5 {[%clk 0:00:10.5]} 76.
Ne1 {[%clk 0:00:02.6]} 76... Nf4+ {[%clk 0:00:11.1]} 77. Ke3 {[%clk 0:00:02.7]}
77... Nd5+ {[%clk 0:00:11.3]} 78. Ke2 {[%clk 0:00:02.9]} 78... Kf4 {[%clk
0:00:11.5]} 79. Ng2+ {[%clk 0:00:03]} 79... Kg3 {[%clk 0:00:11.9]} 80. Ne1
{[%clk 0:00:03.6]} 80... g4 {[%clk 0:00:11.8]} 81. Nc2 {[%clk 0:00:03.8]} 81...
Kf4 {[%clk 0:00:11.8]} 82. Nd4 {[%clk 0:00:04.2]} 82... g3 {[%clk 0:00:11.7]}
83. Ne6+ {[%clk 0:00:04.7]} 83... Kg4 {[%clk 0:00:12.2]} 84. Kf1 {[%clk
0:00:04.7]} 84... Nf4 {[%clk 0:00:11.7]} 85. Nd4 {[%clk 0:00:04.4]} 85... g2+
{[%clk 0:00:11.3]} 86. Kg1 {[%clk 0:00:04.9]} 86... Kh3 {[%clk 0:00:11.2]} 87.
Nf5 {[%clk 0:00:03.1]} 87... Ne2+ {[%clk 0:00:11.3]} 0-1

[Event "Early-Titled-Tuesday-Blitz-November-28-2023"]
[Site "Chess.com"]
[Date "2023.11.28"]
[Round "2"]
[White "jcibarra"]
[Black "AlexPapasimakopoulos"]
[Result "1/2-1/2"]
[WhiteElo "2897"]
[BlackElo "2590"]
[TimeControl "180+1"]
[EndTime "8:21:06 PST"]
[Termination "Game drawn by repetition"]

1. e4 {[%clk 0:03:00.9]} 1... e6 {[%clk 0:02:59.9]} 2. d4 {[%clk 0:03:00.8]}
2... d5 {[%clk 0:03:00.5]} 3. Nc3 {[%clk 0:03:01.5]} 3... Bb4 {[%clk 0:03:00]}
4. Ne2 {[%clk 0:03:01.3]} 4... Nc6 {[%clk 0:02:57.9]} 5. a3 {[%clk 0:02:57.7]}
5... Ba5 {[%clk 0:02:57.9]} 6. b4 {[%clk 0:02:54.3]} 6... Bb6 {[%clk 0:02:57.8]}
7. Bb2 {[%clk 0:02:55.1]} 7... Nge7 {[%clk 0:02:55.2]} 8. Qd2 {[%clk 0:02:55.2]}
8... O-O {[%clk 0:02:53.6]} 9. Na4 {[%clk 0:02:54.8]} 9... Bd7 {[%clk
0:02:50.6]} 10. Nxb6 {[%clk 0:02:48.5]} 10... axb6 {[%clk 0:02:50.3]} 11. e5
{[%clk 0:02:42.7]} 11... f6 {[%clk 0:02:50.3]} 12. exf6 {[%clk 0:02:33.5]} 12...
Rxf6 {[%clk 0:02:49.9]} 13. Ng3 {[%clk 0:02:32.7]} 13... Be8 {[%clk 0:02:48]}
14. Be2 {[%clk 0:02:25.3]} 14... Bg6 {[%clk 0:02:42.4]} 15. Nh5 {[%clk
0:02:25.3]} 15... Bxh5 {[%clk 0:02:38.2]} 16. Bxh5 {[%clk 0:02:25.1]} 16... Qd6
{[%clk 0:02:37.9]} 17. h3 {[%clk 0:02:06]} 17... Raf8 {[%clk 0:02:37.2]} 18. O-O
{[%clk 0:02:05.5]} 18... Ng6 {[%clk 0:02:29.3]} 19. g3 {[%clk 0:02:00.2]} 19...
e5 {[%clk 0:02:19.2]} 20. Bxg6 {[%clk 0:01:46.6]} 20... Rxg6 {[%clk 0:02:18.7]}
21. b5 {[%clk 0:01:46.9]} 21... Nxd4 {[%clk 0:02:14.6]} 22. Bxd4 {[%clk
0:01:42.8]} 22... exd4 {[%clk 0:02:14.5]} 23. Qxd4 {[%clk 0:01:14.8]} 23... Rf3
{[%clk 0:01:40.4]} 24. Kh1 {[%clk 0:01:08.7]} 24... h5 {[%clk 0:01:16.4]} 25.
Rad1 {[%clk 0:00:47.1]} 25... Rg5 {[%clk 0:01:16.1]} 26. c4 {[%clk 0:00:45.9]}
26... Rxa3 {[%clk 0:00:59.3]} 27. cxd5 {[%clk 0:00:42.1]} 27... Rf3 {[%clk
0:00:56.4]} 28. Rfe1 {[%clk 0:00:36.7]} 28... Rgf5 {[%clk 0:00:55.4]} 29. Re6
{[%clk 0:00:34.4]} 29... Qd7 {[%clk 0:00:52.8]} 30. Qe4 {[%clk 0:00:34.2]} 30...
Rxf2 {[%clk 0:00:47]} 31. d6 {[%clk 0:00:33.3]} 31... Rf1+ {[%clk 0:00:27.7]}
32. Rxf1 {[%clk 0:00:30.9]} 32... Rxf1+ {[%clk 0:00:28.6]} 33. Kg2 {[%clk
0:00:31.7]} 33... Rf8 {[%clk 0:00:25.6]} 34. Qd5 {[%clk 0:00:23.4]} 34... Qf7
{[%clk 0:00:25.6]} 35. Re5 {[%clk 0:00:18.9]} 35... cxd6 {[%clk 0:00:21.1]} 36.
Qxf7+ {[%clk 0:00:17.7]} 36... Kxf7 {[%clk 0:00:17]} 37. Rxh5 {[%clk 0:00:18.3]}
37... Rc8 {[%clk 0:00:17.3]} 38. Rd5 {[%clk 0:00:17.2]} 38... Ke6 {[%clk
0:00:17.5]} 39. Rg5 {[%clk 0:00:18]} 39... Kf6 {[%clk 0:00:16.5]} 40. Rd5 {[%clk
0:00:18.1]} 40... Ke6 {[%clk 0:00:16.7]} 41. Rg5 {[%clk 0:00:18.7]} 41... Rc7
{[%clk 0:00:13.2]} 42. Kf3 {[%clk 0:00:18.5]} 42... Kf6 {[%clk 0:00:13.4]} 43.
Rd5 {[%clk 0:00:18.5]} 43... Ke6 {[%clk 0:00:13.3]} 44. Rg5 {[%clk 0:00:18.9]}
44... Kf6 {[%clk 0:00:10.4]} 45. Rd5 {[%clk 0:00:18.8]} 45... Ke6 {[%clk
0:00:09.8]} 46. Ke4 {[%clk 0:00:11.8]} 46... Rc3 {[%clk 0:00:09.3]} 47. Rd3
{[%clk 0:00:11]} 47... Rc5 {[%clk 0:00:07.9]} 48. Rb3 {[%clk 0:00:11.1]} 48...
d5+ {[%clk 0:00:07.7]} 49. Kf3 {[%clk 0:00:10.6]} 49... Ke5 {[%clk 0:00:06.6]}
50. Re3+ {[%clk 0:00:10.5]} 50... Kf6 {[%clk 0:00:07.1]} 51. h4 {[%clk
0:00:09.8]} 51... d4 {[%clk 0:00:06.3]} 52. Rd3 {[%clk 0:00:09.9]} 52... Ke5
{[%clk 0:00:06.5]} 53. Rd1 {[%clk 0:00:08.1]} 53... Rxb5 {[%clk 0:00:06.7]} 54.
Re1+ {[%clk 0:00:08.8]} 54... Kd6 {[%clk 0:00:06.1]} 55. Re4 {[%clk 0:00:08.6]}
55... Rd5 {[%clk 0:00:05.2]} 56. Ke2 {[%clk 0:00:08.9]} 56... d3+ {[%clk
0:00:05.6]} 57. Kd2 {[%clk 0:00:09.1]} 57... b5 {[%clk 0:00:06.3]} 58. Rg4
{[%clk 0:00:09.2]} 58... g5 {[%clk 0:00:05.3]} 59. hxg5 {[%clk 0:00:08.8]} 59...
Ke7 {[%clk 0:00:05.8]} 60. Rf4 {[%clk 0:00:08.1]} 60... Rxg5 {[%clk 0:00:05.5]}
61. Kxd3 {[%clk 0:00:08.2]} 61... Rxg3+ {[%clk 0:00:04.4]} 62. Kd4 {[%clk
0:00:08.7]} 62... Kd6 {[%clk 0:00:03.8]} 63. Rf6+ {[%clk 0:00:08.6]} 63... Kc7
{[%clk 0:00:04.3]} 64. Kc5 {[%clk 0:00:09]} 64... Rg5+ {[%clk 0:00:04.4]} 65.
Kb4 {[%clk 0:00:09.4]} 65... Re5 {[%clk 0:00:04.2]} 66. Rg6 {[%clk 0:00:09.5]}
66... Rd5 {[%clk 0:00:04]} 67. Ka5 {[%clk 0:00:09.2]} 67... Kc8 {[%clk
0:00:03.2]} 68. Rh6 {[%clk 0:00:06]} 68... Rc5 {[%clk 0:00:03.1]} 69. Rg6 {[%clk
0:00:06.3]} 69... Rc6 {[%clk 0:00:02.8]} 70. Rg5 {[%clk 0:00:05.8]} 70... b4
{[%clk 0:00:02.7]} 71. Kxb4 {[%clk 0:00:05.9]} 71... Kc7 {[%clk 0:00:03.4]} 72.
Rg7+ {[%clk 0:00:05]} 72... Kb8 {[%clk 0:00:04]} 73. Kb5 {[%clk 0:00:04.7]}
73... Ka7 {[%clk 0:00:04.5]} 74. Rg1 {[%clk 0:00:05.3]} 74... Rb6+ {[%clk
0:00:04.9]} 75. Ka5 {[%clk 0:00:05.8]} 75... Ra6+ {[%clk 0:00:05.5]} 76. Kb5
{[%clk 0:00:06.6]} 76... Rb6+ {[%clk 0:00:06.1]} 77. Ka5 {[%clk 0:00:07.3]}
77... Rh6 {[%clk 0:00:06.5]} 78. Kb5 {[%clk 0:00:07.6]} 78... Rh5+ {[%clk
0:00:07]} 79. Kb4 {[%clk 0:00:07.9]} 79... Ka6 {[%clk 0:00:07.4]} 80. Rg6+
{[%clk 0:00:07.4]} 80... b6 {[%clk 0:00:07.7]} 81. Rg4 {[%clk 0:00:08.1]} 81...
Rf5 {[%clk 0:00:07.7]} 82. Re4 {[%clk 0:00:07.9]} 82... Rf1 {[%clk 0:00:08]} 83.
Re8 {[%clk 0:00:07.8]} 83... Rb1+ {[%clk 0:00:08.3]} 84. Ka3 {[%clk 0:00:07.3]}
84... Ka5 {[%clk 0:00:07.3]} 85. Ra8+ {[%clk 0:00:06.6]} 85... Kb5 {[%clk
0:00:07.6]} 86. Rh8 {[%clk 0:00:07.4]} 86... Rc1 {[%clk 0:00:07.9]} 87. Kb3
{[%clk 0:00:07]} 87... Rc5 {[%clk 0:00:08.5]} 88. Rh4 {[%clk 0:00:07.1]} 88...
Rg5 {[%clk 0:00:09]} 89. Rb4+ {[%clk 0:00:07]} 89... Ka5 {[%clk 0:00:09.5]} 90.
Ra4+ {[%clk 0:00:07.6]} 90... Kb5 {[%clk 0:00:10]} 91. Rb4+ {[%clk 0:00:08.5]}
91... Ka6 {[%clk 0:00:10.5]} 92. Ra4+ {[%clk 0:00:08.9]} 92... Ra5 {[%clk
0:00:11]} 93. Rb4 {[%clk 0:00:05.7]} 93... Rc5 {[%clk 0:00:10.8]} 94. Ra4+
{[%clk 0:00:05.6]} 94... Kb5 {[%clk 0:00:11.4]} 95. Rh4 {[%clk 0:00:06.2]} 95...
Rf5 {[%clk 0:00:11.2]} 96. Rh3 {[%clk 0:00:06.4]} 96... Kc5 {[%clk 0:00:11.6]}
97. Rc3+ {[%clk 0:00:06.3]} 97... Kd6 {[%clk 0:00:11.3]} 98. Kb4 {[%clk
0:00:06.1]} 98... Rd5 {[%clk 0:00:11.2]} 99. Rc1 {[%clk 0:00:05.5]} 99... Kd7
{[%clk 0:00:10.7]} 100. Rc2 {[%clk 0:00:05.6]} 100... Rd1 {[%clk 0:00:10.5]}
101. Kb5 {[%clk 0:00:05.3]} 101... Rb1+ {[%clk 0:00:11.1]} 102. Ka6 {[%clk
0:00:05.3]} 102... Kd6 {[%clk 0:00:11.3]} 103. Rc3 {[%clk 0:00:05.3]} 103... Kd5
{[%clk 0:00:11.2]} 104. Rc2 {[%clk 0:00:05.9]} 104... b5 {[%clk 0:00:11.6]} 105.
Ka5 {[%clk 0:00:05.7]} 105... Kd4 {[%clk 0:00:12.2]} 106. Rc8 {[%clk 0:00:05.5]}
106... b4 {[%clk 0:00:12]} 107. Ka4 {[%clk 0:00:05.8]} 107... Kd3 {[%clk
0:00:12.5]} 108. Rc7 {[%clk 0:00:05.6]} 108... Rb2 {[%clk 0:00:12.2]} 109. Rc8
{[%clk 0:00:05.5]} 109... b3 {[%clk 0:00:12.5]} 110. Ka3 {[%clk 0:00:05.3]}
110... Rb1 {[%clk 0:00:13.1]} 111. Rc7 {[%clk 0:00:05.6]} 111... Kd2 {[%clk
0:00:13.7]} 112. Rc8 {[%clk 0:00:05.4]} 112... Kd3 {[%clk 0:00:11.6]} 113. Rc7
{[%clk 0:00:05.3]} 113... Ke2 {[%clk 0:00:12.1]} 114. Rd7 {[%clk 0:00:04.9]}
114... Rd1 {[%clk 0:00:10.7]} 115. Re7+ {[%clk 0:00:04.7]} 115... Kd3 {[%clk
0:00:10.6]} 116. Kxb3 {[%clk 0:00:04.7]} 116... Rb1+ {[%clk 0:00:10.4]} 117. Ka2
{[%clk 0:00:05.2]} 117... Rb6 {[%clk 0:00:10.2]} 118. Rc7 {[%clk 0:00:05.7]}
118... Kd2 {[%clk 0:00:10.2]} 119. Ka3 {[%clk 0:00:05.9]} 119... Rb8 {[%clk
0:00:10.2]} 120. Ka4 {[%clk 0:00:06.2]} 120... Rb1 {[%clk 0:00:10.7]} 121. Ka3
{[%clk 0:00:06.4]} 121... Rb8 {[%clk 0:00:10.6]} 122. Ka4 {[%clk 0:00:06.4]}
122... Rb1 {[%clk 0:00:11.2]} 123. Ka3 {[%clk 0:00:06.2]} 123... Rb8 {[%clk
0:00:11.8]} 1/2-1/2

[Event "Early-Titled-Tuesday-Blitz-November-28-2023"]
[Site "Chess.com"]
[Date "2023.11.28"]
[Round "2"]
[White "Mystery2007"]
[Black "Felix-Rose"]
[Result "1-0"]
[WhiteElo "2577"]
[BlackElo "2347"]
[TimeControl "180+1"]
[EndTime "8:21:32 PST"]
[Termination "Mystery2007 won by checkmate"]

1. Nf3 {[%clk 0:03:00.9]} 1... d5 {[%clk 0:02:57.4]} 2. b3 {[%clk 0:03:01.8]}
2... Nf6 {[%clk 0:02:55.6]} 3. Bb2 {[%clk 0:03:02.1]} 3... e6 {[%clk 0:02:56.1]}
4. g3 {[%clk 0:03:00.9]} 4... c5 {[%clk 0:02:54.8]} 5. Bg2 {[%clk 0:03:01.1]}
5... Bd6 {[%clk 0:02:54.1]} 6. O-O {[%clk 0:03:00.8]} 6... Qe7 {[%clk
0:02:54.6]} 7. d4 {[%clk 0:02:51.6]} 7... O-O {[%clk 0:02:48.5]} 8. dxc5 {[%clk
0:02:41.5]} 8... Bxc5 {[%clk 0:02:49.4]} 9. Nbd2 {[%clk 0:02:41.2]} 9... b6
{[%clk 0:02:46]} 10. Ne5 {[%clk 0:02:40.9]} 10... Bb7 {[%clk 0:02:44.1]} 11. c4
{[%clk 0:02:40.9]} 11... Ba3 {[%clk 0:02:30.9]} 12. Bxa3 {[%clk 0:02:36.8]}
12... Qxa3 {[%clk 0:02:31.8]} 13. cxd5 {[%clk 0:02:33.5]} 13... Bxd5 {[%clk
0:02:31.1]} 14. Ndc4 {[%clk 0:02:31.2]} 14... Qc5 {[%clk 0:02:27.8]} 15. Nd3
{[%clk 0:02:19.8]} 15... Qe7 {[%clk 0:02:20.2]} 16. Bxd5 {[%clk 0:02:11.5]}
16... Nxd5 {[%clk 0:02:19.9]} 17. e4 {[%clk 0:02:06.3]} 17... Nb4 {[%clk
0:01:53.5]} 18. Nde5 {[%clk 0:01:49.5]} 18... Rd8 {[%clk 0:01:47.8]} 19. Qh5
{[%clk 0:01:41.1]} 19... N8c6 {[%clk 0:01:22.5]} 20. Rfd1 {[%clk 0:01:26.7]}
20... g6 {[%clk 0:01:02.7]} 21. Qh6 {[%clk 0:01:19.5]} 21... Nxe5 {[%clk
0:00:48.1]} 22. Nxe5 {[%clk 0:01:18.4]} 22... f6 {[%clk 0:00:45.7]} 23. Ng4
{[%clk 0:01:07.2]} 23... e5 {[%clk 0:00:22.3]} 24. Qh4 {[%clk 0:00:58.2]} 24...
Kg7 {[%clk 0:00:20.5]} 25. Qh6+ {[%clk 0:00:57.8]} 25... Kg8 {[%clk 0:00:20.9]}
26. h4 {[%clk 0:00:58.2]} 26... Nc2 {[%clk 0:00:20.1]} 27. Rac1 {[%clk
0:00:56.6]} 27... Rxd1+ {[%clk 0:00:13.4]} 28. Rxd1 {[%clk 0:00:55.8]} 28... Nd4
{[%clk 0:00:13.8]} 29. Ne3 {[%clk 0:00:47.2]} 29... Rc8 {[%clk 0:00:08.7]} 30.
Nd5 {[%clk 0:00:46.9]} 30... Qg7 {[%clk 0:00:09.2]} 31. Qe3 {[%clk 0:00:41.8]}
31... Rc2 {[%clk 0:00:06.2]} 32. Kg2 {[%clk 0:00:39.7]} 32... Rxa2 {[%clk
0:00:05.6]} 33. Qc3 {[%clk 0:00:39.3]} 33... Rc2 {[%clk 0:00:05]} 34. Qb4 {[%clk
0:00:34]} 34... Qf7 {[%clk 0:00:04.9]} 35. Qd6 {[%clk 0:00:33.1]} 35... Kg7
{[%clk 0:00:05.2]} 36. h5 {[%clk 0:00:25.8]} 36... gxh5 {[%clk 0:00:05.3]} 37.
Ne3 {[%clk 0:00:20.2]} 37... Rc6 {[%clk 0:00:05.3]} 38. Qd8 {[%clk 0:00:18.1]}
38... Qc7 {[%clk 0:00:05]} 39. Qe8 {[%clk 0:00:17.7]} 39... Qf7 {[%clk
0:00:04.7]} 40. Qa8 {[%clk 0:00:12.6]} 40... Rc7 {[%clk 0:00:05.1]} 41. Qb8
{[%clk 0:00:08.2]} 41... Rb7 {[%clk 0:00:04.7]} 42. Qd6 {[%clk 0:00:08.3]} 42...
Kg6 {[%clk 0:00:05.3]} 43. Qb4 {[%clk 0:00:06.4]} 43... a5 {[%clk 0:00:05.6]}
44. Qa4 {[%clk 0:00:05.2]} 44... Qxb3 {[%clk 0:00:04.4]} 45. Rxd4 {[%clk
0:00:04]} 45... Qxa4 {[%clk 0:00:03.2]} 46. Rxa4 {[%clk 0:00:04.9]} 46... b5
{[%clk 0:00:04]} 47. Rxa5 {[%clk 0:00:05.4]} 47... b4 {[%clk 0:00:04.9]} 48. Ra1
{[%clk 0:00:04.9]} 48... b3 {[%clk 0:00:05.7]} 49. Rb1 {[%clk 0:00:05.6]} 49...
h4 {[%clk 0:00:06.1]} 50. Rb2 {[%clk 0:00:03.6]} 50... hxg3 {[%clk 0:00:06.5]}
51. Kxg3 {[%clk 0:00:04.5]} 51... Kg5 {[%clk 0:00:07.1]} 52. Nd5 {[%clk
0:00:04]} 52... h5 {[%clk 0:00:07.7]} 53. Ne3 {[%clk 0:00:02.2]} 53... h4+
{[%clk 0:00:07.7]} 54. Kf3 {[%clk 0:00:02.9]} 54... h3 {[%clk 0:00:07.9]} 55.
Nf1 {[%clk 0:00:03.1]} 55... f5 {[%clk 0:00:07.7]} 56. exf5 {[%clk 0:00:02.8]}
56... Kxf5 {[%clk 0:00:08.6]} 57. Ne3+ {[%clk 0:00:03.5]} 57... Kg5 {[%clk
0:00:09]} 58. Kg3 {[%clk 0:00:04.4]} 58... e4 {[%clk 0:00:09.1]} 59. Kxh3 {[%clk
0:00:04]} 59... Kf4 {[%clk 0:00:09.7]} 60. Kg2 {[%clk 0:00:04.6]} 60... Rg7+
{[%clk 0:00:09.7]} 61. Kf1 {[%clk 0:00:04.6]} 61... Rb7 {[%clk 0:00:10.5]} 62.
Ke2 {[%clk 0:00:04.6]} 62... Rb4 {[%clk 0:00:10.5]} 63. Nd1 {[%clk 0:00:04.5]}
63... Ke5 {[%clk 0:00:11]} 64. Ke3 {[%clk 0:00:04.3]} 64... Rb5 {[%clk
0:00:11.2]} 65. Nc3 {[%clk 0:00:04.8]} 65... Rb4 {[%clk 0:00:12]} 66. Ne2 {[%clk
0:00:05.1]} 66... Kd5 {[%clk 0:00:12.2]} 67. Nf4+ {[%clk 0:00:03.9]} 67... Ke5
{[%clk 0:00:12.8]} 68. Ne2 {[%clk 0:00:04.6]} 68... Kd5 {[%clk 0:00:13.5]} 69.
Nc1 {[%clk 0:00:05]} 69... Kc4 {[%clk 0:00:13.3]} 70. Rxb3 {[%clk 0:00:05.4]}
70... Ra4 {[%clk 0:00:11.9]} 71. Rb2 {[%clk 0:00:05]} 71... Kd5 {[%clk
0:00:12.1]} 72. Ne2 {[%clk 0:00:04.6]} 72... Ke5 {[%clk 0:00:12.4]} 73. Rb3
{[%clk 0:00:04.5]} 73... Ra2 {[%clk 0:00:12.4]} 74. Rb5+ {[%clk 0:00:04.4]}
74... Ke6 {[%clk 0:00:13]} 75. Nc3 {[%clk 0:00:04.3]} 75... Ra3 {[%clk
0:00:12.6]} 76. Kd4 {[%clk 0:00:04.6]} 76... e3 {[%clk 0:00:12.8]} 77. fxe3
{[%clk 0:00:04.7]} 77... Ra4+ {[%clk 0:00:13.5]} 78. Kd3 {[%clk 0:00:04.6]}
78... Ra6 {[%clk 0:00:13.7]} 79. e4 {[%clk 0:00:05.1]} 79... Rd6+ {[%clk
0:00:14.4]} 80. Nd5 {[%clk 0:00:05.6]} 80... Ra6 {[%clk 0:00:15.3]} 81. Kd4
{[%clk 0:00:06.2]} 81... Ra1 {[%clk 0:00:15.6]} 82. Rb4 {[%clk 0:00:06.9]} 82...
Rd1+ {[%clk 0:00:15.9]} 83. Ke3 {[%clk 0:00:06.9]} 83... Ke5 {[%clk 0:00:16.5]}
84. Nc3 {[%clk 0:00:05.4]} 84... Re1+ {[%clk 0:00:16.9]} 85. Ne2 {[%clk
0:00:05.9]} 85... Ra1 {[%clk 0:00:16.5]} 86. Rb5+ {[%clk 0:00:06.2]} 86... Ke6
{[%clk 0:00:17.2]} 87. Kf4 {[%clk 0:00:06.4]} 87... Re1 {[%clk 0:00:17.4]} 88.
Nd4+ {[%clk 0:00:06.1]} 88... Ke7 {[%clk 0:00:17.6]} 89. Ke5 {[%clk 0:00:06.6]}
89... Rd1 {[%clk 0:00:17.8]} 90. Rb7+ {[%clk 0:00:06.8]} 90... Kd8 {[%clk
0:00:18]} 91. Ne6+ {[%clk 0:00:06.3]} 91... Kc8 {[%clk 0:00:18]} 92. Rc7+ {[%clk
0:00:06]} 92... Kb8 {[%clk 0:00:18.7]} 93. Rc2 {[%clk 0:00:06.5]} 93... Kb7
{[%clk 0:00:17.8]} 94. Nd4 {[%clk 0:00:06.9]} 94... Rh1 {[%clk 0:00:18]} 95. Kd5
{[%clk 0:00:07.5]} 95... Rh8 {[%clk 0:00:18.3]} 96. e5 {[%clk 0:00:08.2]} 96...
Rd8+ {[%clk 0:00:19.2]} 97. Ke4 {[%clk 0:00:08.5]} 97... Re8 {[%clk 0:00:19.7]}
98. e6 {[%clk 0:00:08.8]} 98... Kb6 {[%clk 0:00:19.1]} 99. Ke5 {[%clk
0:00:09.3]} 99... Rd8 {[%clk 0:00:18.9]} 100. Nf5 {[%clk 0:00:09]} 100... Rh8
{[%clk 0:00:19.1]} 101. e7 {[%clk 0:00:09.3]} 101... Re8 {[%clk 0:00:19.1]} 102.
Ke6 {[%clk 0:00:09.7]} 102... Kb5 {[%clk 0:00:18.9]} 103. Kd7 {[%clk 0:00:09.9]}
103... Ra8 {[%clk 0:00:19.8]} 104. e8=N {[%clk 0:00:07.7]} 104... Ra7+ {[%clk
0:00:19.5]} 105. Nc7+ {[%clk 0:00:07.7]} 105... Kb4 {[%clk 0:00:19.6]} 106. Nd6
{[%clk 0:00:07.8]} 106... Kb3 {[%clk 0:00:20.2]} 107. Rc6 {[%clk 0:00:07.9]}
107... Ra4 {[%clk 0:00:20.5]} 108. Ke6 {[%clk 0:00:08.5]} 108... Rb4 {[%clk
0:00:19.8]} 109. Kd5 {[%clk 0:00:08.8]} 109... Ka4 {[%clk 0:00:19.7]} 110. Ne6
{[%clk 0:00:09.1]} 110... Rb3 {[%clk 0:00:18.1]} 111. Nc5+ {[%clk 0:00:09.6]}
111... Ka3 {[%clk 0:00:18.7]} 112. Nxb3 {[%clk 0:00:09.6]} 112... Kxb3 {[%clk
0:00:19.6]} 113. Kd4 {[%clk 0:00:09.4]} 113... Ka4 {[%clk 0:00:20.2]} 114. Rb6
{[%clk 0:00:08.9]} 114... Ka5 {[%clk 0:00:20.6]} 115. Rb1 {[%clk 0:00:08.3]}
115... Ka4 {[%clk 0:00:21.1]} 116. Kc3 {[%clk 0:00:07.3]} 116... Ka5 {[%clk
0:00:21]} 117. Kc4 {[%clk 0:00:07.7]} 117... Ka6 {[%clk 0:00:20.5]} 118. Kc5
{[%clk 0:00:08.2]} 118... Ka7 {[%clk 0:00:20.8]} 119. Kc6 {[%clk 0:00:08.8]}
119... Ka8 {[%clk 0:00:20.5]} 120. Kc7 {[%clk 0:00:09.3]} 120... Ka7 {[%clk
0:00:20.9]} 121. Ra1# {[%clk 0:00:10.2]} 1-0